fUSD/lending_fUSD_20250601
["ID","MTS","AMOUNT","RATE_DAILY","PERIOD"]
[363697382,1748821832251,-420.0,0.00019178,2]
[363697384,1748821832261,-420.0,0.00019178,2]
[363697386,1748821832270,-420.0,0.00019178,2]
[363697387,1748821832279,-1451.48,0.00019178,2]
[363697389,1748821832289,-420.0,0.00019178,2]
[363697391,1748821832299,-420.0,0.00019178,2]
[363697393,1748821832308,-6644.17,0.00019178,2]
[363697395,1748821832318,-420.0,0.00019178,2]
[363697397,1748821832328,-420.0,0.00019178,2]
[363697399,1748821832338,-420.0,0.00019178,2]
[363697401,1748821832347,-420.0,0.00019178,2]
[363697403,1748821832358,-420.0,0.00019178,2]
[363697405,1748821832368,-420.0,0.00019178,2]
[363697407,1748821832377,-420.0,0.00019178,2]
[363697408,1748821832387,-420.0,0.00019178,2]
[363697409,1748821832396,-439.42,0.00019178,2]
[363697410,1748821832406,-420.0,0.00019178,2]
[363697411,1748821832416,-420.0,0.00019178,2]
[363697412,1748821832425,-420.0,0.00019178,2]
[363697413,1748821832435,-420.0,0.00019178,2]
[363697414,1748821832445,-697.5,0.00019178,2]
[363697415,1748821832454,-420.0,0.00019178,2]
[363697416,1748821832464,-1014.58,0.00019178,2]
[363697417,1748821832473,-420.0,0.00019178,2]
[363697418,1748821832483,-1091.89,0.00019178,2]
[363697419,1748821832492,-420.0,0.00019178,2]
[363697420,1748821832502,-547.48,0.00019178,2]
[363697421,1748821832512,-420.0,0.00019178,2]
[363697422,1748821832522,-420.0,0.00019178,2]
[363697423,1748821832531,-420.0,0.00019178,2]
[363697424,1748821832541,-1260.41,0.00019178,2]
[363697425,1748821832551,-420.0,0.00019178,2]
[363697426,1748821832561,-824.69,0.00019178,2]
[363697427,1748821832570,-788.72,0.00019178,2]
[363697428,1748821832580,-420.0,0.00019178,2]
[363697429,1748821832591,-420.0,0.00019178,2]
[363697430,1748821832600,-732.99,0.00019178,2]
[363697431,1748821832610,-436.37,0.00019178,2]
[363697432,1748821832619,-1115.02,0.00019178,2]
[363697433,1748821832628,-420.0,0.00019178,2]
[363697434,1748821832641,-625.54,0.00019178,2]
[363697435,1748821832651,-420.0,0.00019178,2]
[363697436,1748821832661,-222.31,0.00019178,2]
[363697437,1748821832670,-475.68,0.00019178,2]
[363697438,1748821832680,-420.0,0.00019178,2]
[363697439,1748821832689,-420.0,0.00019178,2]
[363697440,1748821832700,-420.0,0.00019178,2]
[363697441,1748821832710,-3124.09,0.00019178,2]
[363697442,1748821832720,-420.0,0.00019178,2]
[363697443,1748821832730,-420.0,0.00019178,2]
[363697444,1748821832739,-151.0,0.00019178,2]
[363697445,1748821832749,-300.0,0.000192,7]
[363697446,1748821832758,-150.0,0.00019225,2]
[363697447,1748821832768,-600.0,0.000193,7]
[363697448,1748821832777,-250.0,0.00019315,2]
[363697449,1748821832787,-865.19,0.00019315,2]
[363697450,1748821832797,-420.0,0.00019315,2]
[363697451,1748821832807,-420.0,0.00019315,2]
[363697452,1748821832816,-420.0,0.00019315,2]
[363697453,1748821832826,-420.0,0.00019315,2]
[363697454,1748821832835,-420.0,0.00019315,2]
[363697455,1748821832845,-462.21,0.00019315,2]
[363697456,1748821832854,-420.0,0.00019315,2]
[363697457,1748821832864,-552.02,0.00019315,2]
[363697458,1748821832873,-2150.41,0.00019315,2]
[363697459,1748821832882,-420.0,0.00019315,2]
[363697460,1748821832892,-420.0,0.00019315,2]
[363697461,1748821832902,-420.0,0.00019315,2]
[363697462,1748821832911,-460.28,0.00019315,2]
[363697463,1748821832921,-420.0,0.00019315,2]
[363697464,1748821832931,-420.0,0.00019315,2]
[363697465,1748821832941,-420.0,0.00019315,2]
[363697466,1748821832951,-440.01,0.00019315,2]
[363697467,1748821832961,-305.50439993,0.00019315,2]
[363697468,1748821832970,-420.0,0.00019315,2]
[363697469,1748821832980,-420.0,0.00019315,2]
[363697470,1748821832990,-1451.48,0.00019315,2]
[363697471,1748821832999,-0.05134286,0.00019315,2]
[363697472,1748821833013,-419.94865714,0.00019315,2]
[363697473,1748821833024,-420.0,0.00019315,2]
[363697474,1748821833033,-6644.17,0.00019315,2]
[363697475,1748821833043,-420.0,0.00019315,2]
[363697476,1748821833053,-420.0,0.00019315,2]
[363697477,1748821833063,-420.0,0.00019315,2]
[363697478,1748821833073,-420.0,0.00019315,2]
[363697479,1748821833083,-420.0,0.00019315,2]
[363697480,1748821833092,-420.0,0.00019315,2]
[363697481,1748821833103,-439.42,0.00019315,2]
[363697482,1748821833112,-420.0,0.00019315,2]
[363697483,1748821833121,-420.0,0.00019315,2]
[363697484,1748821833131,-420.0,0.00019315,2]
[363697485,1748821833141,-697.5,0.00019315,2]
[363697486,1748821833152,-420.0,0.00019315,2]
[363697487,1748821833162,-1014.58,0.00019315,2]
[363697488,1748821833173,-420.0,0.00019315,2]
[363697489,1748821833183,-1091.89,0.00019315,2]
[363697490,1748821833194,-420.0,0.00019315,2]
[363697491,1748821833204,-547.48,0.00019315,2]
[363697492,1748821833214,-420.0,0.00019315,2]
[363697493,1748821833223,-420.0,0.00019315,2]
[363697494,1748821833233,-1260.41,0.00019315,2]
[363697495,1748821833243,-420.0,0.00019315,2]
[363697496,1748821833253,-824.69,0.00019315,2]
[363697497,1748821833263,-788.72,0.00019315,2]
[363697498,1748821833273,-420.0,0.00019315,2]
[363697499,1748821833282,-420.0,0.00019315,2]
[363697500,1748821833291,-732.99,0.00019315,2]
[363697501,1748821833302,-436.37,0.00019315,2]
[363697502,1748821833311,-1115.02,0.00019315,2]
[363697503,1748821833320,-420.0,0.00019315,2]
[363697504,1748821833330,-625.54,0.00019315,2]
[363697505,1748821833339,-420.0,0.00019315,2]
[363697506,1748821833349,-475.68,0.00019315,2]
[363697507,1748821833359,-420.0,0.00019315,2]
[363697508,1748821833369,-420.0,0.00019315,2]
[363697509,1748821833379,-420.0,0.00019315,2]
[363697510,1748821833389,-3124.09,0.00019315,2]
[363697511,1748821833399,-420.0,0.00019315,2]
[363697512,1748821833408,-420.0,0.00019315,2]
[363697513,1748821833418,-150.99,0.00019339,2]
[363697514,1748821833427,-6627.79,0.00019339,2]
[363697515,1748821833436,-150.0,0.00019397,2]
[363697516,1748821833446,-900.0,0.000194,7]
[363697517,1748821833455,-186.65,0.000194,2]
[363697518,1748821833464,-150.0,0.00019434,2]
[363697519,1748821833473,-865.19,0.00019452,2]
[363697520,1748821833482,-514.37267702,0.00019452,2]
[363697521,1748821833491,-420.0,0.00019452,2]
[363697522,1748821833501,-420.0,0.00019452,2]
[363697523,1748821833510,-462.21,0.00019452,2]
[363697524,1748821833519,-420.0,0.00019452,2]
[363697525,1748821833529,-552.02,0.00019452,2]
[363697526,1748821833539,-2150.41,0.00019452,2]
[363697527,1748821833549,-420.0,0.00019452,2]
[363697528,1748821833559,-420.0,0.00019452,2]
[363697529,1748821833569,-420.0,0.00019452,2]
[363697530,1748821833578,-460.28,0.00019452,2]
[363697531,1748821833588,-420.0,0.00019452,2]
[363697532,1748821833598,-420.0,0.00019452,2]
[363697533,1748821833608,-440.01,0.00019452,2]
[363697534,1748821833617,-420.0,0.00019452,2]
[363697535,1748821833627,-420.0,0.00019452,2]
[363697536,1748821833639,-1451.48,0.00019452,2]
[363697537,1748821833649,-420.0,0.00019452,2]
[363697538,1748821833659,-430.58590428,0.00019452,2]
[363697539,1748821833669,-6644.17,0.00019452,2]
[363697540,1748821833679,-420.0,0.00019452,2]
[363697541,1748821833688,-420.0,0.00019452,2]
[363697542,1748821833698,-420.0,0.00019452,2]
[363697543,1748821833708,-420.0,0.00019452,2]
[363697544,1748821833717,-439.42,0.00019452,2]
[363697545,1748821833727,-420.0,0.00019452,2]
[363697546,1748821833737,-420.0,0.00019452,2]
[363697547,1748821833746,-420.0,0.00019452,2]
[363697548,1748821833756,-420.0,0.00019452,2]
[363697549,1748821833766,-697.5,0.00019452,2]
[363697550,1748821833776,-457.04,0.00019452,2]
[363697551,1748821833786,-1014.58,0.00019452,2]
[363697552,1748821833795,-420.0,0.00019452,2]
[363697553,1748821833806,-1091.89,0.00019452,2]
[363697554,1748821833816,-420.0,0.00019452,2]
[363697555,1748821833825,-547.48,0.00019452,2]
[363697556,1748821833835,-420.0,0.00019452,2]
[363697557,1748821833844,-420.0,0.00019452,2]
[363697558,1748821833854,-1260.41,0.00019452,2]
[363697559,1748821833864,-420.0,0.00019452,2]
[363697560,1748821833873,-824.69,0.00019452,2]
[363697561,1748821833883,-788.72,0.00019452,2]
[363697562,1748821833892,-420.0,0.00019452,2]
[363697563,1748821833901,-420.0,0.00019452,2]
[363697564,1748821833912,-732.99,0.00019452,2]
[363697565,1748821833923,-436.37,0.00019452,2]
[363697566,1748821833932,-1115.02,0.00019452,2]
[363697567,1748821833942,-420.0,0.00019452,2]
[363697568,1748821833953,-625.54,0.00019452,2]
[363697569,1748821833962,-420.0,0.00019452,2]
[363697570,1748821833972,-475.68,0.00019452,2]
[363697571,1748821833981,-420.0,0.00019452,2]
[363697572,1748821833991,-420.0,0.00019452,2]
[363697573,1748821834000,-420.0,0.00019452,2]
[363697574,1748821834009,-3124.09,0.00019452,2]
[363697575,1748821834019,-420.0,0.00019452,2]
[363697576,1748821834028,-420.0,0.00019452,2]
[363697577,1748821834038,-1200.0,0.000195,7]
[363697578,1748821834047,-500.0,0.00019507,2]
[363697579,1748821834058,-500.0,0.00019534,2]
[363697580,1748821834067,-500.0,0.00019562,2]
[363697581,1748821834077,-865.19,0.00019589,2]
[363697582,1748821834086,-420.0,0.00019589,2]
[363697583,1748821834095,-420.0,0.00019589,2]
[363697584,1748821834105,-462.21,0.00019589,2]
[363697585,1748821834114,-420.0,0.00019589,2]
[363697586,1748821834124,-552.02,0.00019589,2]
[363697587,1748821834133,-2150.41,0.00019589,2]
[363697588,1748821834143,-420.0,0.00019589,2]
[363697589,1748821834152,-420.0,0.00019589,2]
[363697590,1748821834162,-420.0,0.00019589,2]
[363697591,1748821834172,-460.28,0.00019589,2]
[363697592,1748821834182,-420.0,0.00019589,2]
[363697593,1748821834192,-420.0,0.00019589,2]
[363697594,1748821834203,-440.01,0.00019589,2]
[363697595,1748821834212,-420.0,0.00019589,2]
[363697596,1748821834222,-314.36951186,0.00019589,2]
[363697597,1748821834233,-1451.48,0.00019589,2]
[363697598,1748821834242,-420.0,0.00019589,2]
[363697599,1748821834251,-6644.17,0.00019589,2]
[363697600,1748821834261,-420.0,0.00019589,2]
[363697601,1748821834271,-420.0,0.00019589,2]
[363697602,1748821834281,-420.0,0.00019589,2]
[363697603,1748821834290,-420.0,0.00019589,2]
[363697604,1748821834300,-439.42,0.00019589,2]
[363697605,1748821834310,-420.0,0.00019589,2]
[363697606,1748821834321,-420.0,0.00019589,2]
[363697607,1748821834331,-420.0,0.00019589,2]
[363697608,1748821834341,-420.0,0.00019589,2]
[363697609,1748821834350,-697.5,0.00019589,2]
[363697610,1748821834360,-1014.58,0.00019589,2]
[363697611,1748821834370,-420.0,0.00019589,2]
[363697612,1748821834380,-1091.89,0.00019589,2]
[363697613,1748821834390,-420.0,0.00019589,2]
[363697614,1748821834400,-547.48,0.00019589,2]
[363697615,1748821834409,-420.0,0.00019589,2]
[363697616,1748821834419,-420.0,0.00019589,2]
[363697617,1748821834429,-1260.41,0.00019589,2]
[363697618,1748821834439,-420.0,0.00019589,2]
[363697619,1748821834449,-824.69,0.00019589,2]
[363697620,1748821834458,-788.72,0.00019589,2]
[363697621,1748821834468,-291.54767625,0.00019589,2]
[363697622,1748821834482,-128.45232375,0.00019589,2]
[363697623,1748821834491,-420.0,0.00019589,2]
[363697624,1748821834501,-604.33167625,0.00019589,2]
[363697644,1748821837806,-554.66,0.00019178,2]
[363697645,1748821837817,-420.0,0.00019178,2]
[363697646,1748821837827,-420.0,0.00019178,2]
[363697647,1748821837837,-420.0,0.00019315,2]
[363697648,1748821837846,-260.44,0.00019452,2]
[363697649,1748821837858,-159.56,0.00019452,2]
[363697664,1748821837868,-128.65832375,0.00019589,2]
[363697667,1748821838068,-436.37,0.00019589,2]
[363697670,1748821838077,-1115.02,0.00019589,2]
[363697671,1748821838088,-420.0,0.00019589,2]
[363697673,1748821838097,-625.54,0.00019589,2]
[363697675,1748821838107,-420.0,0.00019589,2]
[363697676,1748821838117,-475.68,0.00019589,2]
[363697677,1748821838127,-420.0,0.00019589,2]
[363697678,1748821838136,-420.0,0.00019589,2]
[363697680,1748821838145,-420.0,0.00019589,2]
[363697682,1748821838155,-3124.09,0.00019589,2]
[363697684,1748821838164,-420.0,0.00019589,2]
[363697686,1748821838174,-420.0,0.00019589,2]
[363697688,1748821838183,-500.0,0.00019589,2]
[363697690,1748821838193,-202.0,0.0001959,2]
[363697692,1748821838203,-721.89767625,0.00019599,2]
[363697695,1748821838220,-420.0,0.00019589,2]
[363697697,1748821838230,-144.56550004,0.00019599,2]
[363697699,1748821838242,-596.11963871,0.00019599,2]
[363697701,1748821838251,-326.09,0.000196,2]
[363697703,1748821838260,-923.19966423,0.000196,2]
[363697886,1748821840106,-482.09,0.00019178,2]
[363697888,1748821840117,-482.09,0.00019315,2]
[363697890,1748821840127,-482.09,0.00019452,2]
[363697892,1748821840137,-238.34033577,0.000196,2]
[363697894,1748821840147,-1500.0,0.000196,7]
[363697896,1748821840157,-500.0,0.00019617,2]
[363697898,1748821840166,-500.0,0.00019644,2]
[363697900,1748821840176,-150.0,0.00019659,2]
[363697902,1748821840185,-500.0,0.00019671,2]
[363697904,1748821840194,-157.37,0.0001969,2]
[363697906,1748821840204,-500.0,0.00019699,2]
[363697908,1748821840213,-500.0,0.00019699,2]
[363697910,1748821840223,-300.0,0.000197,7]
[363697912,1748821840233,-34967.14161592,0.000197,2]
[363697914,1748821840242,-1000.0,0.000197,2]
[363697916,1748821840252,-150.0,0.0001971,2]
[363697918,1748821840262,-151.0,0.00019714,2]
[363697920,1748821840271,-865.19,0.00019726,2]
[363697922,1748821840280,-250.04718933,0.00019726,2]
[363697924,1748821840290,-420.0,0.00019726,2]
[363697926,1748821840299,-2150.41,0.00019726,2]
[363697928,1748821840309,-420.0,0.00019726,2]
[363697929,1748821840318,-420.0,0.00019726,2]
[363697931,1748821840328,-420.0,0.00019726,2]
[363697933,1748821840339,-460.28,0.00019726,2]
[363697935,1748821840349,-420.0,0.00019726,2]
[363697937,1748821840359,-420.0,0.00019726,2]
[363697939,1748821840369,-440.01,0.00019726,2]
[363697942,1748821840379,-420.0,0.00019726,2]
[363697944,1748821840388,-1451.48,0.00019726,2]
[363697946,1748821840398,-420.0,0.00019726,2]
[363697948,1748821840407,-6644.17,0.00019726,2]
[363697950,1748821840416,-420.0,0.00019726,2]
[363697951,1748821840427,-478.78977338,0.00019726,2]
[363697954,1748821840436,-420.0,0.00019726,2]
[363697956,1748821840446,-420.0,0.00019726,2]
[363697958,1748821840457,-439.42,0.00019726,2]
[363697959,1748821840466,-420.0,0.00019726,2]
[363697961,1748821840476,-420.0,0.00019726,2]
[363697964,1748821840486,-420.0,0.00019726,2]
[363697966,1748821840495,-420.0,0.00019726,2]
[363697967,1748821840505,-697.5,0.00019726,2]
[363697970,1748821840515,-1014.58,0.00019726,2]
[363697971,1748821840525,-420.0,0.00019726,2]
[363697973,1748821840534,-1091.89,0.00019726,2]
[363697975,1748821840544,-420.0,0.00019726,2]
[363697978,1748821840553,-547.48,0.00019726,2]
[363697980,1748821840563,-420.0,0.00019726,2]
[363697982,1748821840572,-420.0,0.00019726,2]
[363697984,1748821840582,-1260.41,0.00019726,2]
[363697986,1748821840591,-420.0,0.00019726,2]
[363697988,1748821840600,-824.69,0.00019726,2]
[363697989,1748821840609,-788.72,0.00019726,2]
[363697991,1748821840618,-420.0,0.00019726,2]
[363697993,1748821840628,-420.0,0.00019726,2]
[363697996,1748821840641,-732.99,0.00019726,2]
[363697997,1748821840651,-436.37,0.00019726,2]
[363697999,1748821840661,-1115.02,0.00019726,2]
[363698001,1748821840670,-420.0,0.00019726,2]
[363698004,1748821840681,-625.54,0.00019726,2]
[363698005,1748821840690,-420.0,0.00019726,2]
[363698007,1748821840699,-475.68,0.00019726,2]
[363698009,1748821840709,-420.0,0.00019726,2]
[363698011,1748821840719,-420.0,0.00019726,2]
[363698014,1748821840729,-420.0,0.00019726,2]
[363698016,1748821840739,-3124.09,0.00019726,2]
[363698018,1748821840748,-420.0,0.00019726,2]
[363698020,1748821840758,-420.0,0.00019726,2]
[363698022,1748821840767,-420.0,0.00019726,2]
[363698024,1748821840776,-156.587,0.00019726,2]
[363698026,1748821840785,-500.0,0.00019726,2]
[363698028,1748821840794,-150.0,0.00019732,2]
[363698030,1748821840803,-500.0,0.00019754,2]
[363698031,1748821840812,-201.14009166,0.00019781,2]
[363698034,1748821840823,-150.0,0.00019788,2]
[363698036,1748821840832,-300.0,0.000198,7]
[363698038,1748821840841,-150.0,0.00019853,2]
[363698040,1748821840851,-500.0,0.00019862,2]
[363698042,1748821840861,-865.19,0.00019863,2]
[363698043,1748821840870,-420.0,0.00019863,2]
[363698046,1748821840879,-2150.41,0.00019863,2]
[363698047,1748821840889,-420.0,0.00019863,2]
[363698049,1748821840898,-501.94324822,0.00019863,2]
[363698051,1748821840907,-420.0,0.00019863,2]
[363698054,1748821840917,-460.28,0.00019863,2]
[363698055,1748821840926,-420.0,0.00019863,2]
[363698057,1748821840935,-420.0,0.00019863,2]
[363698059,1748821840944,-440.01,0.00019863,2]
[363698061,1748821840954,-202.04718634,0.00019863,2]
[363698063,1748821840964,-1451.48,0.00019863,2]
[363698065,1748821840973,-420.0,0.00019863,2]
[363698067,1748821840984,-6644.17,0.00019863,2]
[363698069,1748821840993,-420.0,0.00019863,2]
[363698071,1748821841004,-420.0,0.00019863,2]
[363698073,1748821841013,-420.0,0.00019863,2]
[363698075,1748821841023,-439.42,0.00019863,2]
[363698077,1748821841032,-420.0,0.00019863,2]
[363698079,1748821841041,-420.0,0.00019863,2]
[363698081,1748821841051,-420.0,0.00019863,2]
[363698083,1748821841059,-420.0,0.00019863,2]
[363698085,1748821841069,-697.5,0.00019863,2]
[363698086,1748821841078,-1014.58,0.00019863,2]
[363698088,1748821841087,-420.0,0.00019863,2]
[363698090,1748821841096,-1091.89,0.00019863,2]
[363698092,1748821841106,-420.0,0.00019863,2]
[363698093,1748821841116,-547.48,0.00019863,2]
[363698095,1748821841126,-420.0,0.00019863,2]
[363698096,1748821841135,-420.0,0.00019863,2]
[363698097,1748821841145,-1260.41,0.00019863,2]
[363698098,1748821841154,-420.0,0.00019863,2]
[363698099,1748821841163,-824.69,0.00019863,2]
[363698100,1748821841172,-788.72,0.00019863,2]
[363698101,1748821841181,-420.0,0.00019863,2]
[363698103,1748821841191,-420.0,0.00019863,2]
[363698104,1748821841200,-732.99,0.00019863,2]
[363698106,1748821841212,-436.37,0.00019863,2]
[363698108,1748821841222,-1115.02,0.00019863,2]
[363698109,1748821841231,-420.0,0.00019863,2]
[363698110,1748821841240,-625.54,0.00019863,2]
[363698111,1748821841249,-420.0,0.00019863,2]
[363698112,1748821841260,-475.68,0.00019863,2]
[363698113,1748821841270,-420.0,0.00019863,2]
[363698114,1748821841281,-420.0,0.00019863,2]
[363698115,1748821841290,-420.0,0.00019863,2]
[363698116,1748821841300,-3124.09,0.00019863,2]
[363698117,1748821841309,-420.0,0.00019863,2]
[363698118,1748821841319,-420.0,0.00019863,2]
[363698119,1748821841328,-501.51489799,0.00019863,2]
[363698120,1748821841337,-5800.0,0.00019866,2]
[363698121,1748821841347,-202.0,0.0001987,2]
[363698122,1748821841357,-5937.352,0.00019883,2]
[363698123,1748821841366,-245.666,0.00019883,2]
[363698124,1748821841376,-1351.03901448,0.00019899,2]
[363698125,1748821841386,-1351.03901444,0.00019899,2]
[363698126,1748821841397,-1351.03901444,0.00019899,2]
[363698127,1748821841406,-1351.03901444,0.00019899,2]
[363698128,1748821841416,-1351.03901444,0.00019899,2]
[363698129,1748821841426,-1351.03901444,0.000199,2]
[363698130,1748821841435,-1351.03901444,0.000199,2]
[363698131,1748821841445,-1351.03901444,0.000199,2]
[363698132,1748821841457,-1351.03901444,0.000199,2]
[363698133,1748821841466,-612.59817792,0.000199,2]
[363698134,1748821841475,-1000.0,0.000199,2]
[363698135,1748821841485,-1351.03901444,0.000199,2]
[363698136,1748821841495,-300.0,0.000199,7]
[363698137,1748821841504,-175.50049734,0.000199,2]
[363698138,1748821841514,-7125.41240225,0.000199,2]
[363698139,1748821841524,-222.499358,0.000199,2]
[363698140,1748821841534,-182.19146167,0.000199,2]
[363698141,1748821841543,-1602.93513653,0.0001997,2]
[363698142,1748821841552,-500.0,0.00019973,2]
[363698143,1748821841562,-500.0,0.00019973,2]
[363698144,1748821841571,-501.07092483,0.00019973,2]
[363698145,1748821841580,-500.0,0.00019973,2]
[363698146,1748821841589,-500.0,0.00019973,2]
[363698147,1748821841605,-500.0,0.00019973,2]
[363698148,1748821841619,-500.0,0.00019973,2]
[363698149,1748821841629,-500.0,0.00019973,2]
[363698150,1748821841641,-500.0,0.00019973,2]
[363698151,1748821841650,-500.0,0.00019973,2]
[363698152,1748821841660,-500.0,0.00019973,2]
[363698153,1748821841669,-500.0,0.00019973,2]
[363698154,1748821841679,-150.0,0.00019985,2]
[363698155,1748821841690,-150.0,0.00019985,2]
[363698156,1748821841700,-150.0,0.00019985,2]
[363698157,1748821841714,-454.09,0.00019985,2]
[363698158,1748821841723,-453.52,0.00019985,2]
[363698159,1748821841733,-200.84,0.00019989,2]
[363698160,1748821841744,-1161.54,0.00019989,2]
[363698161,1748821841753,-1161.54,0.00019989,2]
[363698162,1748821841764,-340.77,0.00019989,2]
[363698163,1748821841773,-2323.08,0.00019989,2]
[363698164,1748821841783,-170.4,0.00019989,2]
[363698165,1748821841793,-441.28,0.00019989,2]
[363698166,1748821841802,-150.0,0.00019989,2]
[363698167,1748821841812,-150.0,0.00019989,2]
[363698168,1748821841822,-1395.53,0.00019989,2]
[363698169,1748821841831,-150.0,0.00019989,2]
[363698170,1748821841841,-150.0,0.00019989,2]
[363698171,1748821841851,-669.49247622,0.00019999,2]
[363698172,1748821841860,-2000.0,0.00019999,2]
[363698173,1748821841870,-2000.0,0.00019999,2]
[363698174,1748821841880,-2000.0,0.00019999,2]
[363698175,1748821841889,-2000.0,0.00019999,2]
[363698176,1748821841899,-2000.0,0.00019999,2]
[363698177,1748821841908,-339.61,0.00019999,2]
[363698178,1748821841918,-476.264458,0.00019999,2]
[363698179,1748821841927,-345.14737477,0.00019999,2]
[363698180,1748821841937,-500.0,0.00019999,2]
[363698181,1748821841947,-500.0,0.00019999,2]
[363698182,1748821841959,-500.0,0.00019999,2]
[363698183,1748821841969,-500.0,0.00019999,2]
[363698184,1748821841979,-465.29303377,0.00019999,2]
[363698185,1748821841988,-493.12092147,0.00019999,2]
[363698186,1748821841998,-500.0,0.00019999,2]
[363698187,1748821842008,-500.0,0.00019999,2]
[363698188,1748821842017,-562.05145172,0.00019999,2]
[363698189,1748821842027,-500.0,0.00019999,2]
[363698190,1748821842037,-150.0,0.00019999,2]
[363698191,1748821842047,-150.0,0.00019999,2]
[363698192,1748821842056,-300.0,0.00019999,2]
[363698193,1748821842066,-150.0,0.00019999,2]
[363698194,1748821842075,-150.0,0.00019999,2]
[363698195,1748821842084,-150.0,0.00019999,2]
[363698196,1748821842094,-150.0,0.00019999,2]
[363698197,1748821842103,-150.0,0.00019999,2]
[363698198,1748821842113,-150.0,0.00019999,2]
[363698199,1748821842123,-1008.0,0.00019999,2]
[363698200,1748821842132,-154.864,0.0002,2]
[363698201,1748821842142,-1315.0,0.0002,2]
[363698202,1748821842152,-942.0,0.0002,2]
[363698203,1748821842162,-808.0,0.0002,2]
[363698204,1748821842172,-635.0,0.0002,2]
[363698205,1748821842182,-1270.0,0.0002,2]
[363698206,1748821842192,-588.0,0.0002,2]
[363698207,1748821842203,-1467.0,0.0002,2]
[363698208,1748821842213,-925.0,0.0002,2]
[363698209,1748821842223,-556.0,0.0002,2]
[363698210,1748821842232,-885.398,0.0002,2]
[363698211,1748821842243,-150.866,0.0002,2]
[363698212,1748821842253,-7008.0,0.0002,2]
[363698213,1748821842262,-287.188,0.0002,2]
[363698214,1748821842272,-4206.81,0.0002,2]
[363698215,1748821842282,-848.0,0.0002,2]
[363698216,1748821842292,-1352807.16251287,0.0002,2]
[363698217,1748821842303,-1013.53002592,0.0002,2]
[363698218,1748821842312,-4000.0,0.0002,4]
[363698219,1748821842323,-4000.0,0.0002,4]
[363698220,1748821842333,-4000.0,0.0002,4]
[363698221,1748821842343,-4000.0,0.0002,4]
[363698222,1748821842353,-4000.0,0.0002,4]
[363698223,1748821842363,-4000.0,0.0002,4]
[363698224,1748821842373,-882323.04899171,0.0002,2]
[363698240,1748821846652,-482.09,0.00019589,2]
[363698241,1748821846662,-482.09,0.00019726,2]
[363698242,1748821846671,-482.09,0.00019863,2]
[363698243,1748821846683,-808.64571064,0.00019999,2]
[363698244,1748821846693,-178.301,0.0002,2]
[363698245,1748821846703,-2185.53679656,0.0002,2]
[363698246,1748821846717,-439.12498366,0.0002,2]
[363698247,1748822104885,19493.03,0.00019,2]
[363698249,1748822233835,263.63,0.00013699,2]